Workbook

Sheet Kryci list
A2: Soupis stavebních prací, dodávek a služeb s výkazem výměr
A3: Zakázka
A4: Datum | B4: 2021-05-13
A6: Zakázka | B6: Rekonstrukce mostu DC-021 v ul. Revírní
B7: ul. Revírní, Děčín XI (Horní Žleb) | C7: CZK
A11: Stavebník | B11: Statutární město Děčín
B12: magistrát města Děčín, Mírové nám. 1175/5
B13: 405 38 Děčín IV
A15: Projektant | B15: FIRAST s.r.o.
B16: V Korytech 972/12, 100 00 Praha 10
B17: IČ: 26708167
B18: Ing. Radek Boháč, Ing. Denisa Boháčová
A20: Uchazeč
A22: Stupeň dokumentace | B22: DPS
A23: Fáze | B23: Rozpočet pro výběr zhotovitele stavby
A25: Celková nabídková cena musí obsahovat veškeré práce a dodávky nutné k řádnému a úplnému zhotovení předmětu plnění zakázky a jeho uvedení do provozu, které vyplývají ze zadávacích podmínek.
A26: Sazby a ceny se zadávají (musí být uvedeny) ke každé položce výkazu výměr. Sazby zahrnují veškeré daně, cla a další závazky, které nejsou ve výkaze výměr a v nabídce uvedené zvlášť.
A27: Zadavatel doporučuje uchazečům v případě rozporů mezi soupisem prací s výkazem výměr a projektovou dokumentací vyjasnit tuto situaci v průběhu soutěžní lhůty prostřednictvím žádosti o dodatečnou informaci.
A28: Položky s číselným kódem jsou z cenové databáze ÚRS 2019-01, položky s R-kódem jsou tvořeny pomocí databáze vlastní.

Sheet Rekapitulace
B1: Zakázka:
A2: =INDEX(__SAZBA__,MATCH(0,COUNTIF($A$1:A1,__SAZBA__),0)) -> _ | B2: ='Kryci list'!B6 -> Rekonstrukce mostu DC-021 v ul. Revírní
A3: =INDEX(__SAZBA__,MATCH(0,COUNTIF($A$1:A2,__SAZBA__),0)) -> 21 | B3: Popis | C3: Cena | D3: Hmotnost | E3: DPH | F3: Cena s DPH
A4: =INDEX(__SAZBA__,MATCH(0,COUNTIF($A$1:A3,__SAZBA__),0)) -> 
B5: =IF(Zakazka!$I$5=0,"",Zakazka!$I$5) -> SO_01: Rekonstrukce mostu | C5: =IF(Zakazka!$O$5=0,"",Zakazka!$O$5) ->  | D5: =IF(Zakazka!$Q$5=0,"",Zakazka!$Q$5) -> 118.1575112 | E5: =IF(Zakazka!$U$5=0,"",Zakazka!$U$5) ->  | F5: =IF(Zakazka!$V$5=0,"",Zakazka!$V$5) -> 
B6: =IF(Zakazka!$I$6=0,"",Zakazka!$I$6) -> 001: Zemní práce | C6: =IF(Zakazka!$O$6=0,"",Zakazka!$O$6) ->  | D6: =IF(Zakazka!$Q$6=0,"",Zakazka!$Q$6) -> 7.41795 | E6: =IF(Zakazka!$U$6=0,"",Zakazka!$U$6) ->  | F6: =IF(Zakazka!$V$6=0,"",Zakazka!$V$6) -> 
B7: =IF(Zakazka!$I$48=0,"",Zakazka!$I$48) -> 002: Základy | C7: =IF(Zakazka!$O$48=0,"",Zakazka!$O$48) ->  | D7: =IF(Zakazka!$Q$48=0,"",Zakazka!$Q$48) -> 24.0451504 | E7: =IF(Zakazka!$U$48=0,"",Zakazka!$U$48) ->  | F7: =IF(Zakazka!$V$48=0,"",Zakazka!$V$48) -> 
B8: =IF(Zakazka!$I$76=0,"",Zakazka!$I$76) -> 003: Svislé konstrukce | C8: =IF(Zakazka!$O$76=0,"",Zakazka!$O$76) ->  | D8: =IF(Zakazka!$Q$76=0,"",Zakazka!$Q$76) -> 31.39911882 | E8: =IF(Zakazka!$U$76=0,"",Zakazka!$U$76) ->  | F8: =IF(Zakazka!$V$76=0,"",Zakazka!$V$76) -> 
B9: =IF(Zakazka!$I$132=0,"",Zakazka!$I$132) -> 004: Vodorovné konstrukce | C9: =IF(Zakazka!$O$132=0,"",Zakazka!$O$132) ->  | D9: =IF(Zakazka!$Q$132=0,"",Zakazka!$Q$132) -> 17.70378672 | E9: =IF(Zakazka!$U$132=0,"",Zakazka!$U$132) ->  | F9: =IF(Zakazka!$V$132=0,"",Zakazka!$V$132) -> 
B10: =IF(Zakazka!$I$152=0,"",Zakazka!$I$152) -> 005: Komunikace | C10: =IF(Zakazka!$O$152=0,"",Zakazka!$O$152) ->  | D10: =IF(Zakazka!$Q$152=0,"",Zakazka!$Q$152) -> 31.445534 | E10: =IF(Zakazka!$U$152=0,"",Zakazka!$U$152) ->  | F10: =IF(Zakazka!$V$152=0,"",Zakazka!$V$152) -> 
B11: =IF(Zakazka!$I$167=0,"",Zakazka!$I$167) -> 006: Úpravy povrchu | C11: =IF(Zakazka!$O$167=0,"",Zakazka!$O$167) ->  | D11: =IF(Zakazka!$Q$167=0,"",Zakazka!$Q$167) -> 1.972602448 | E11: =IF(Zakazka!$U$167=0,"",Zakazka!$U$167) ->  | F11: =IF(Zakazka!$V$167=0,"",Zakazka!$V$167) -> 
B12: =IF(Zakazka!$I$188=0,"",Zakazka!$I$188) -> 009: Ostatní konstrukce a práce | C12: =IF(Zakazka!$O$188=0,"",Zakazka!$O$188) ->  | D12: =IF(Zakazka!$Q$188=0,"",Zakazka!$Q$188) -> 4.171711725 | E12: =IF(Zakazka!$U$188=0,"",Zakazka!$U$188) ->  | F12: =IF(Zakazka!$V$188=0,"",Zakazka!$V$188) -> 
B13: =IF(Zakazka!$I$230=0,"",Zakazka!$I$230) -> 099: Přesun hmot HSV | C13: =IF(Zakazka!$O$230=0,"",Zakazka!$O$230) ->  | D13: =IF(Zakazka!$Q$230=0,"",Zakazka!$Q$230) ->  | E13: =IF(Zakazka!$U$230=0,"",Zakazka!$U$230) ->  | F13: =IF(Zakazka!$V$230=0,"",Zakazka!$V$230) -> 
B14: =IF(Zakazka!$I$238=0,"",Zakazka!$I$238) -> 711: Izolace proti vodě | C14: =IF(Zakazka!$O$238=0,"",Zakazka!$O$238) ->  | D14: =IF(Zakazka!$Q$238=0,"",Zakazka!$Q$238) ->  | E14: =IF(Zakazka!$U$238=0,"",Zakazka!$U$238) ->  | F14: =IF(Zakazka!$V$238=0,"",Zakazka!$V$238) -> 
B15: =IF(Zakazka!$I$244=0,"",Zakazka!$I$244) -> 767: Konstrukce zámečnické | C15: =IF(Zakazka!$O$244=0,"",Zakazka!$O$244) ->  | D15: =IF(Zakazka!$Q$244=0,"",Zakazka!$Q$244) -> 0.0016571 | E15: =IF(Zakazka!$U$244=0,"",Zakazka!$U$244) ->  | F15: =IF(Zakazka!$V$244=0,"",Zakazka!$V$244) -> 
B16: =IF(Zakazka!$I$263=0,"",Zakazka!$I$263) -> SO_02: Zpevnění svahu a oplocení | C16: =IF(Zakazka!$O$263=0,"",Zakazka!$O$263) ->  | D16: =IF(Zakazka!$Q$263=0,"",Zakazka!$Q$263) -> 128.4701436 | E16: =IF(Zakazka!$U$263=0,"",Zakazka!$U$263) ->  | F16: =IF(Zakazka!$V$263=0,"",Zakazka!$V$263) -> 
B17: =IF(Zakazka!$I$264=0,"",Zakazka!$I$264) -> 001: Zemní práce | C17: =IF(Zakazka!$O$264=0,"",Zakazka!$O$264) ->  | D17: =IF(Zakazka!$Q$264=0,"",Zakazka!$Q$264) -> 2.0603 | E17: =IF(Zakazka!$U$264=0,"",Zakazka!$U$264) ->  | F17: =IF(Zakazka!$V$264=0,"",Zakazka!$V$264) -> 
B18: =IF(Zakazka!$I$304=0,"",Zakazka!$I$304) -> 002: Základy | C18: =IF(Zakazka!$O$304=0,"",Zakazka!$O$304) ->  | D18: =IF(Zakazka!$Q$304=0,"",Zakazka!$Q$304) -> 16.5159936 | E18: =IF(Zakazka!$U$304=0,"",Zakazka!$U$304) ->  | F18: =IF(Zakazka!$V$304=0,"",Zakazka!$V$304) -> 
B19: =IF(Zakazka!$I$317=0,"",Zakazka!$I$317) -> 003: Svislé konstrukce | C19: =IF(Zakazka!$O$317=0,"",Zakazka!$O$317) ->  | D19: =IF(Zakazka!$Q$317=0,"",Zakazka!$Q$317) -> 109.89385 | E19: =IF(Zakazka!$U$317=0,"",Zakazka!$U$317) ->  | F19: =IF(Zakazka!$V$317=0,"",Zakazka!$V$317) -> 
B20: =IF(Zakazka!$I$331=0,"",Zakazka!$I$331) -> 009: Ostatní konstrukce a práce | C20: =IF(Zakazka!$O$331=0,"",Zakazka!$O$331) ->  | D20: =IF(Zakazka!$Q$331=0,"",Zakazka!$Q$331) ->  | E20: =IF(Zakazka!$U$331=0,"",Zakazka!$U$331) ->  | F20: =IF(Zakazka!$V$331=0,"",Zakazka!$V$331) -> 
B21: =IF(Zakazka!$I$340=0,"",Zakazka!$I$340) -> 099: Přesun hmot HSV | C21: =IF(Zakazka!$O$340=0,"",Zakazka!$O$340) ->  | D21: =IF(Zakazka!$Q$340=0,"",Zakazka!$Q$340) ->  | E21: =IF(Zakazka!$U$340=0,"",Zakazka!$U$340) ->  | F21: =IF(Zakazka!$V$340=0,"",Zakazka!$V$340) -> 
B22: =IF(Zakazka!$I$349=0,"",Zakazka!$I$349) -> SO_03: Úprava dlažby pod drážním tělesem | C22: =IF(Zakazka!$O$349=0,"",Zakazka!$O$349) ->  | D22: =IF(Zakazka!$Q$349=0,"",Zakazka!$Q$349) -> 57.4085318 | E22: =IF(Zakazka!$U$349=0,"",Zakazka!$U$349) ->  | F22: =IF(Zakazka!$V$349=0,"",Zakazka!$V$349) -> 
B23: =IF(Zakazka!$I$350=0,"",Zakazka!$I$350) -> 001: Zemní práce | C23: =IF(Zakazka!$O$350=0,"",Zakazka!$O$350) ->  | D23: =IF(Zakazka!$Q$350=0,"",Zakazka!$Q$350) ->  | E23: =IF(Zakazka!$U$350=0,"",Zakazka!$U$350) ->  | F23: =IF(Zakazka!$V$350=0,"",Zakazka!$V$350) -> 
B24: =IF(Zakazka!$I$371=0,"",Zakazka!$I$371) -> 002: Základy | C24: =IF(Zakazka!$O$371=0,"",Zakazka!$O$371) ->  | D24: =IF(Zakazka!$Q$371=0,"",Zakazka!$Q$371) -> 2.2947918 | E24: =IF(Zakazka!$U$371=0,"",Zakazka!$U$371) ->  | F24: =IF(Zakazka!$V$371=0,"",Zakazka!$V$371) -> 
B25: =IF(Zakazka!$I$380=0,"",Zakazka!$I$380) -> 005: Komunikace | C25: =IF(Zakazka!$O$380=0,"",Zakazka!$O$380) ->  | D25: =IF(Zakazka!$Q$380=0,"",Zakazka!$Q$380) -> 43.01374 | E25: =IF(Zakazka!$U$380=0,"",Zakazka!$U$380) ->  | F25: =IF(Zakazka!$V$380=0,"",Zakazka!$V$380) -> 
B26: =IF(Zakazka!$I$389=0,"",Zakazka!$I$389) -> 009: Ostatní konstrukce a práce | C26: =IF(Zakazka!$O$389=0,"",Zakazka!$O$389) ->  | D26: =IF(Zakazka!$Q$389=0,"",Zakazka!$Q$389) -> 12.1 | E26: =IF(Zakazka!$U$389=0,"",Zakazka!$U$389) ->  | F26: =IF(Zakazka!$V$389=0,"",Zakazka!$V$389) -> 
B27: =IF(Zakazka!$I$404=0,"",Zakazka!$I$404) -> 099: Přesun hmot HSV | C27: =IF(Zakazka!$O$404=0,"",Zakazka!$O$404) ->  | D27: =IF(Zakazka!$Q$404=0,"",Zakazka!$Q$404) ->  | E27: =IF(Zakazka!$U$404=0,"",Zakazka!$U$404) ->  | F27: =IF(Zakazka!$V$404=0,"",Zakazka!$V$404) -> 
B28: =IF(Zakazka!$I$409=0,"",Zakazka!$I$409) -> VRN: Vedlejší rozpočtové náklady | C28: =IF(Zakazka!$O$409=0,"",Zakazka!$O$409) ->  | D28: =IF(Zakazka!$Q$409=0,"",Zakazka!$Q$409) ->  | E28: =IF(Zakazka!$U$409=0,"",Zakazka!$U$409) ->  | F28: =IF(Zakazka!$V$409=0,"",Zakazka!$V$409) -> 
B29: =IF(Zakazka!$I$410=0,"",Zakazka!$I$410) -> VRN: Vedlejší rozpočtové náklady | C29: =IF(Zakazka!$O$410=0,"",Zakazka!$O$410) ->  | D29: =IF(Zakazka!$Q$410=0,"",Zakazka!$Q$410) ->  | E29: =IF(Zakazka!$U$410=0,"",Zakazka!$U$410) ->  | F29: =IF(Zakazka!$V$410=0,"",Zakazka!$V$410) -> 
A31: =SUM(A33:A34) -> 0 | B31: Celkem (bez DPH) | C31: =SUBTOTAL(9,C5:C30)/2 -> 0
B32: DPH | C32: =SUBTOTAL(9,C33:C34) -> 0
A33: =IF(ISNUMBER(A3),SUMIF(__SAZBA__,A3,__CENA__),0) -> 0 | B33: =IF(A33=0,"","DPH " & A3 & " % ze základny: " & TEXT(A33,"# ##0")) ->  | C33: =IF(A33=0,"",A33*A3/100) -> 
A34: =IF(ISNUMBER(A4),SUMIF(__SAZBA__,A4,__CENA__),0) -> 0 | B34: =IF(A34=0,"","DPH " & A4 & " % ze základny: " & TEXT(A34,"# ##0")) ->  | C34: =IF(A34=0,"",A34*A4/100) -> 
B35: Celkem (včetně DPH) | C35: =SUM(C31:C32) -> 0 | D35: =#REF! -> 

Sheet Zakazka
F3: Poř. | G3: Typ | H3: Kód | I3: Popis | J3: MJ | K3: Výměra bez ztr. | L3: Ztratné | M3: Výměra | N3: Jedn. cena | O3: Cena | P3: Jedn. hmotn. | Q3: Hmotnost | R3: Jedn. suť | S3: Suť | T3: Sazba DPH | U3: DPH | V3: Cena s DPH | W3: Komentář | X3: Objekt | Y3: Oddíl
I5: SO_01: Rekonstrukce mostu | O5: =SUBTOTAL(9,O6:O262) -> 0 | Q5: =SUBTOTAL(9,Q6:Q262) -> 118.1575112 | S5: =SUBTOTAL(9,S6:S262) -> 77.8659 | T5: _ | U5: =SUBTOTAL(9,U6:U262) -> 0 | V5: =SUBTOTAL(9,V6:V262) -> 0
I6: 001: Zemní práce | O6: =SUBTOTAL(9,O7:O47) -> 0 | Q6: =SUBTOTAL(9,Q7:Q47) -> 7.41795 | S6: =SUBTOTAL(9,S7:S47) -> 8.228 | T6: _ | U6: =SUBTOTAL(9,U7:U47) -> 0 | V6: =SUBTOTAL(9,V7:V47) -> 0
A7: ##T2##N_Catalog_catGUID | B7: ##T2##PRO_ITEM_catID | C7: ##T2##PRO_ITEM_iteCode | D7: ##T2##PRO_ITEM_szvCode | E7: ##T2##PRO_ITEM_tevCode | F7: 1 | G7: SP | H7: 113107342 | I7: Odstranění podkladu živičného tl 100 mm strojně pl do 50 m2 | J7: m2 | K7: 37.4 | L7: 0 | M7: =K7*(1+L7/100) -> 37.4 | O7: =M7*N7 -> 0 | Q7: =M7*P7 -> 0 | R7: 0.22 | S7: =M7*R7 -> 8.228 | T7: 21 | U7: =O7*(T7/100) -> 0 | V7: =O7+U7 -> 0 | X7: SO_01 | Y7: 001
I8: Stávající přilehlá komunikace | K8: 0 | T8: _
I9: 16,5+20,9 | K9: 37.4 | T9: _
F10: 2 | G10: SP | H10: 122202201 | I10: Odkopávky a prokopávky nezapažené pro silnice objemu do 100 m3 v hornině tř. 3 | J10: m3 | K10: 17.72 | L10: 0 | M10: =K10*(1+L10/100) -> 17.72 | O10: =M10*N10 -> 0 | Q10: =M10*P10 -> 0 | S10: =M10*R10 -> 0 | T10: 21 | U10: =O10*(T10/100) -> 0 | V10: =O10+U10 -> 0 | X10: SO_01 | Y10: 001
I11: Kufr pro novou vozovku | K11: 0 | T11: _
I12: (26,0+18,3)*0,4 | K12: 17.72 | T12: _
F13: 3 | G13: SP | H13: 122201109 | I13: Příplatek za lepivost u odkopávek v hornině tř. 1 až 3 | J13: m3 | K13: 17.72 | L13: 0 | M13: =K13*(1+L13/100) -> 17.72 | O13: =M13*N13 -> 0 | Q13: =M13*P13 -> 0 | S13: =M13*R13 -> 0 | T13: 21 | U13: =O13*(T13/100) -> 0 | V13: =O13+U13 -> 0 | X13: SO_01 | Y13: 001
F14: 4 | G14: SP | H14: 131201101 | I14: Hloubení jam nezapažených v hornině tř. 3 objemu do 100 m3 | J14: m3 | K14: 21 | L14: 0 | M14: =K14*(1+L14/100) -> 21 | O14: =M14*N14 -> 0 | Q14: =M14*P14 -> 0 | S14: =M14*R14 -> 0 | T14: 21 | U14: =O14*(T14/100) -> 0 | V14: =O14+U14 -> 0 | X14: SO_01 | Y14: 001
I15: Podél opěr, odpočteny odkopávky | K15: 0 | T15: _
I16: (0,8+1,3)*5,0*2 | K16: 21 | T16: _
F17: 5 | G17: SP | H17: 131201109 | I17: Příplatek za lepivost u hloubení jam nezapažených v hornině tř. 3 | J17: m3 | K17: 21 | L17: 0 | M17: =K17*(1+L17/100) -> 21 | O17: =M17*N17 -> 0 | Q17: =M17*P17 -> 0 | S17: =M17*R17 -> 0 | T17: 21 | U17: =O17*(T17/100) -> 0 | V17: =O17+U17 -> 0 | X17: SO_01 | Y17: 001
F18: 6 | G18: SP | H18: 182101101 | I18: Svahování v zářezech v hornině tř. 1 až 4 | J18: m2 | K18: 16.7 | L18: 0 | M18: =K18*(1+L18/100) -> 16.7 | O18: =M18*N18 -> 0 | Q18: =M18*P18 -> 0 | S18: =M18*R18 -> 0 | T18: 21 | U18: =O18*(T18/100) -> 0 | V18: =O18+U18 -> 0 | X18: SO_01 | Y18: 001
I19: 1,67*5,0*2 | K19: 16.7 | T19: _
F20: 7 | G20: SP | H20: 174101101 | I20: Zásyp jam, šachet rýh nebo kolem objektů sypaninou se zhutněním | J20: m3 | K20: 21 | L20: 0 | M20: =K20*(1+L20/100) -> 21 | O20: =M20*N20 -> 0 | Q20: =M20*P20 -> 0 | S20: =M20*R20 -> 0 | T20: 21 | U20: =O20*(T20/100) -> 0 | V20: =O20+U20 -> 0 | X20: SO_01 | Y20: 001
I21: Původní zeminou - tl. vrstvy max 300mm | K21: 0 | T21: _
I22: 21,0-4,0 | K22: 17 | T22: _
I23: Štěrk | K23: 0 | T23: _
I24: (0,2+0,2)*5,0*2 | K24: 4 | T24: _
F25: 8 | G25: H | H25: 58344197 | I25: štěrkodrť frakce 0/63 | J25: t | K25: 6.72 | L25: 10 | M25: =K25*(1+L25/100) -> 7.392 | O25: =M25*N25 -> 0 | P25: 1 | Q25: =M25*P25 -> 7.392 | S25: =M25*R25 -> 0 | T25: 21 | U25: =O25*(T25/100) -> 0 | V25: =O25+U25 -> 0 | X25: SO_01 | Y25: 001
I26: 20% na zhutnění | K26: 0 | T26: _
I27: 4,0*1,4*1,2 | K27: 6.72 | T27: _
F28: 9 | G28: SP | H28: 162201102 | I28: Vodorovné přemístění do 50 m výkopku/sypaniny z horniny tř. 1 až 4 | J28: m3 | K28: 71.664 | L28: 0 | M28: =K28*(1+L28/100) -> 71.664 | O28: =M28*N28 -> 0 | Q28: =M28*P28 -> 0 | S28: =M28*R28 -> 0 | T28: 21 | U28: =O28*(T28/100) -> 0 | V28: =O28+U28 -> 0 | X28: SO_01 | Y28: 001
I29: KN=1,2 | K29: 0 | T29: _
I30: Na meziskládku; (17,72+21,0)*1,2 | K30: 46.464 | T30: _
I31: Zpět k zásypům; 21,0*1,2 | K31: 25.2 | T31: _
F32: 10 | G32: SP | H32: 167101101 | I32: Nakládání výkopku z hornin tř. 1 až 4 do 100 m3 | J32: m3 | K32: 46.464 | L32: 0 | M32: =K32*(1+L32/100) -> 46.464 | O32: =M32*N32 -> 0 | Q32: =M32*P32 -> 0 | S32: =M32*R32 -> 0 | T32: 21 | U32: =O32*(T32/100) -> 0 | V32: =O32+U32 -> 0 | X32: SO_01 | Y32: 001
F33: 11 | G33: SP | H33: 162701105 | I33: Vodorovné přemístění do 10000 m výkopku/sypaniny z horniny tř. 1 až 4 | J33: m3 | K33: 21.264 | L33: 0 | M33: =K33*(1+L33/100) -> 21.264 | O33: =M33*N33 -> 0 | Q33: =M33*P33 -> 0 | S33: =M33*R33 -> 0 | T33: 21 | U33: =O33*(T33/100) -> 0 | V33: =O33+U33 -> 0 | X33: SO_01 | Y33: 001
I34: 17,72*1,2 | K34: 21.264 | T34: _
F35: 12 | G35: SP | H35: 162701109 | I35: Příplatek k vodorovnému přemístění výkopku/sypaniny z horniny tř. 1 až 4 ZKD 1000 m přes 10000 m | J35: m3 | K35: 616.656 | L35: 0 | M35: =K35*(1+L35/100) -> 616.656 | O35: =M35*N35 -> 0 | Q35: =M35*P35 -> 0 | S35: =M35*R35 -> 0 | T35: 21 | U35: =O35*(T35/100) -> 0 | V35: =O35+U35 -> 0 | X35: SO_01 | Y35: 001
I36: Předpoklad 39km vzdálená skládka | K36: 0 | T36: _
I37: 29*21,264 | K37: 616.656 | T37: _
F38: 13 | G38: SP | H38: 171201201 | I38: Uložení sypaniny na skládky | J38: m3 | K38: 21.264 | L38: 0 | M38: =K38*(1+L38/100) -> 21.264 | O38: =M38*N38 -> 0 | Q38: =M38*P38 -> 0 | S38: =M38*R38 -> 0 | T38: 21 | U38: =O38*(T38/100) -> 0 | V38: =O38+U38 -> 0 | X38: SO_01 | Y38: 001
F39: 14 | G39: SP | H39: 171201211 | I39: Poplatek za uložení stavebního odpadu - zeminy a kameniva na skládce | J39: t | K39: 28.352 | L39: 0 | M39: =K39*(1+L39/100) -> 28.352 | O39: =M39*N39 -> 0 | Q39: =M39*P39 -> 0 | S39: =M39*R39 -> 0 | T39: 21 | U39: =O39*(T39/100) -> 0 | V39: =O39+U39 -> 0 | X39: SO_01 | Y39: 001
I40: 1,6t/m3 v rostlém stavu | K40: 0 | T40: _
I41: 21,264/1,2*1,6 | K41: 28.352 | T41: _
F42: 15 | G42: SP | H42: 183405211 | I42: Výsev trávníku hydroosevem na ornici | J42: m2 | K42: 20 | L42: 0 | M42: =K42*(1+L42/100) -> 20 | O42: =M42*N42 -> 0 | P42: 0.00127 | Q42: =M42*P42 -> 0.0254 | S42: =M42*R42 -> 0 | T42: 21 | U42: =O42*(T42/100) -> 0 | V42: =O42+U42 -> 0 | X42: SO_01 | Y42: 001
F43: 16 | G43: H | H43: 00572410 | I43: osivo směs travní parková | J43: kg | K43: 0.5 | L43: 10 | M43: =K43*(1+L43/100) -> 0.55 | O43: =M43*N43 -> 0 | P43: 0.001 | Q43: =M43*P43 -> 0.00055 | S43: =M43*R43 -> 0 | T43: 21 | U43: =O43*(T43/100) -> 0 | V43: =O43+U43 -> 0 | X43: SO_01 | Y43: 001
I44: 0,025kg/m2 | K44: 0 | T44: _
I45: 20,0*0,025 | K45: 0.5 | T45: _
F46: 17 | G46: SP | H46: 18580431R | I46: Pravidelné kropení vysetého trávníku po dobu 14 dnů od osetí | J46: Kč | K46: 1 | L46: 0 | M46: =K46*(1+L46/100) -> 1 | O46: =M46*N46 -> 0 | Q46: =M46*P46 -> 0 | S46: =M46*R46 -> 0 | T46: 21 | U46: =O46*(T46/100) -> 0 | V46: =O46+U46 -> 0 | X46: SO_01 | Y46: 001
T47: _
I48: 002: Základy | O48: =SUBTOTAL(9,O49:O75) -> 0 | Q48: =SUBTOTAL(9,Q49:Q75) -> 24.0451504 | S48: =SUBTOTAL(9,S49:S75) -> 2.576 | T48: _ | U48: =SUBTOTAL(9,U49:U75) -> 0 | V48: =SUBTOTAL(9,V49:V75) -> 0
F49: 18 | G49: SP | H49: 977151123 | I49: Jádrové vrty diamantovými korunkami do D 150 mm do stavebních materiálů | J49: m | K49: 36.8 | L49: 0 | M49: =K49*(1+L49/100) -> 36.8 | O49: =M49*N49 -> 0 | P49: 0.00122 | Q49: =M49*P49 -> 0.044896 | R49: 0.07 | S49: =M49*R49 -> 2.576 | T49: 21 | U49: =O49*(T49/100) -> 0 | V49: =O49+U49 -> 0 | X49: SO_01 | Y49: 002
I50: Přes opěry, hluché vrtání | K50: 0 | T50: _
I51: 4*5,0 | K51: 20 | T51: _
I52: 4*4,2 | K52: 16.8 | T52: _
F53: 19 | G53: SP | H53: 224312216 | I53: Vrty maloprofilové D do 156 mm úklon přes 45° hl do 50 m hor. V a VI | J53: m | K53: 6 | L53: 0 | M53: =K53*(1+L53/100) -> 6 | O53: =M53*N53 -> 0 | P53: 0.00046 | Q53: =M53*P53 -> 0.00276 | S53: =M53*R53 -> 0 | T53: 21 | U53: =O53*(T53/100) -> 0 | V53: =O53+U53 -> 0 | X53: SO_01 | Y53: 002
I54: Hluché vrtání, zemina | K54: 0 | T54: _
I55: 0,6*4 | K55: 2.4 | T55: _
I56: 0,9*4 | K56: 3.6 | T56: _
F57: 20 | G57: SP | H57: 283111112 | I57: Zřízení trubkových mikropilot svislých část hladká D 105 mm | J57: m | K57: 42.8 | L57: 0 | M57: =K57*(1+L57/100) -> 42.8 | O57: =M57*N57 -> 0 | P57: 0.03701 | Q57: =M57*P57 -> 1.584028 | S57: =M57*R57 -> 0 | T57: 21 | U57: =O57*(T57/100) -> 0 | V57: =O57+U57 -> 0 | X57: SO_01 | Y57: 002
I58: 5,5*4+5,2*4 | K58: 42.8 | T58: _
F59: 21 | G59: H | H59: 1401106R | I59: trubka ocelová bezešvá hladká jakost 11 523 89x10mm | J59: m | K59: 42.8 | L59: 10 | M59: =K59*(1+L59/100) -> 47.08 | O59: =M59*N59 -> 0 | P59: 0.01948 | Q59: =M59*P59 -> 0.9171184 | S59: =M59*R59 -> 0 | T59: 21 | U59: =O59*(T59/100) -> 0 | V59: =O59+U59 -> 0 | X59: SO_01 | Y59: 002
F60: 22 | G60: SP | H60: 281602111 | I60: Injektování povrchové nízkotlaké s dvojitým obturátorem mikropilot a kotev tlakem do 0,6 MPa | J60: hod | K60: 16 | L60: 0 | M60: =K60*(1+L60/100) -> 16 | O60: =M60*N60 -> 0 | P60: 0.00014 | Q60: =M60*P60 -> 0.00224 | S60: =M60*R60 -> 0 | T60: 21 | U60: =O60*(T60/100) -> 0 | V60: =O60+U60 -> 0 | X60: SO_01 | Y60: 002
F61: 23 | G61: H | H61: 58521113 | I61: cement portlandský CEM I 52,5MPa | J61: t | K61: 0.08478 | L61: 10 | M61: =K61*(1+L61/100) -> 0.093258 | O61: =M61*N61 -> 0 | P61: 1 | Q61: =M61*P61 -> 0.093258 | S61: =M61*R61 -> 0 | T61: 21 | U61: =O61*(T61/100) -> 0 | V61: =O61+U61 -> 0 | X61: SO_01 | Y61: 002
I62: 2,5t/m3 | K62: 0 | T62: _
I63: 0,015*0,015*3,14*6,0*8*2,5 | K63: 0.08478 | T63: _
F64: 24 | G64: SP | H64: 283131112 | I64: Zřízení hlavy mikropilot namáhaných tlakem i tahem D do 105 mm | J64: kus | K64: 8 | L64: 0 | M64: =K64*(1+L64/100) -> 8 | O64: =M64*N64 -> 0 | P64: 0.00061 | Q64: =M64*P64 -> 0.00488 | S64: =M64*R64 -> 0 | T64: 21 | U64: =O64*(T64/100) -> 0 | V64: =O64+U64 -> 0 | X64: SO_01 | Y64: 002
F65: 25 | G65: H | H65: 1360000R | I65: Plotna 200x200x20mm se šroubem - hlava namáhaná tahem | J65: kus | K65: 8 | L65: 0 | M65: =K65*(1+L65/100) -> 8 | O65: =M65*N65 -> 0 | P65: 0.004 | Q65: =M65*P65 -> 0.032 | S65: =M65*R65 -> 0 | T65: 21 | U65: =O65*(T65/100) -> 0 | V65: =O65+U65 -> 0 | X65: SO_01 | Y65: 002
F66: 26 | G66: SP | H66: 212795111 | I66: Příčné odvodnění mostní opěry z plastových trub DN 160 včetně podkladního betonu, štěrkového obsypu | J66: m | K66: 14 | L66: 0 | M66: =K66*(1+L66/100) -> 14 | O66: =M66*N66 -> 0 | P66: 1.52477 | Q66: =M66*P66 -> 21.34678 | S66: =M66*R66 -> 0 | T66: 21 | U66: =O66*(T66/100) -> 0 | V66: =O66+U66 -> 0 | X66: SO_01 | Y66: 002
I67: DN150 | K67: 0 | T67: _
I68: 2*7,0 | K68: 14 | T68: _
F69: 27 | G69: SP | H69: 212972113 | I69: Opláštění drenážních trub filtrační textilií DN 160 | J69: m | K69: 14 | L69: 0 | M69: =K69*(1+L69/100) -> 14 | O69: =M69*N69 -> 0 | P69: 0.00016 | Q69: =M69*P69 -> 0.00224 | S69: =M69*R69 -> 0 | T69: 21 | U69: =O69*(T69/100) -> 0 | V69: =O69+U69 -> 0 | X69: SO_01 | Y69: 002
F70: 28 | G70: SP | H70: 21314113R | I70: Zřízení svislé drenážní vrstvy z geotextilie | J70: m2 | K70: 34.5 | L70: 0 | M70: =K70*(1+L70/100) -> 34.5 | O70: =M70*N70 -> 0 | P70: 0.00014 | Q70: =M70*P70 -> 0.00483 | S70: =M70*R70 -> 0 | T70: 21 | U70: =O70*(T70/100) -> 0 | V70: =O70+U70 -> 0 | X70: SO_01 | Y70: 002
I71: (1,7+0,6+1,0)*5,0 | K71: 16.5 | T71: _
I72: (1,3+0,6+1,7)*5,0 | K72: 18 | T72: _
F73: 29 | G73: H | H73: 69311080 | I73: geotextilie netkaná separační, ochranná, filtrační, drenážní PES 200g/m2 | J73: m2 | K73: 34.5 | L73: 10 | M73: =K73*(1+L73/100) -> 37.95 | O73: =M73*N73 -> 0 | P73: 0.0002 | Q73: =M73*P73 -> 0.00759 | S73: =M73*R73 -> 0 | T73: 21 | U73: =O73*(T73/100) -> 0 | V73: =O73+U73 -> 0 | X73: SO_01 | Y73: 002
F74: 30 | G74: SP | H74: 29221111R | I74: Pomocná konstrukce dřevěná pro zvláštní zakládání z terénu - dle aktuálních podmínek | J74: Kč | K74: 1 | L74: 0 | M74: =K74*(1+L74/100) -> 1 | O74: =M74*N74 -> 0 | P74: 0.00253 | Q74: =M74*P74 -> 0.00253 | S74: =M74*R74 -> 0 | T74: 21 | U74: =O74*(T74/100) -> 0 | V74: =O74+U74 -> 0 | X74: SO_01 | Y74: 002
T75: _
I76: 003: Svislé konstrukce | O76: =SUBTOTAL(9,O77:O131) -> 0 | Q76: =SUBTOTAL(9,Q77:Q131) -> 31.39911882 | S76: =SUBTOTAL(9,S77:S131) -> 0 | T76: _ | U76: =SUBTOTAL(9,U77:U131) -> 0 | V76: =SUBTOTAL(9,V77:V131) -> 0
F77: 31 | G77: SP | H77: 334323119 | I77: Mostní opěry a úložné prahy ze ŽB C 35/45 | J77: m3 | K77: 6.153 | L77: 0 | M77: =K77*(1+L77/100) -> 6.153 | O77: =M77*N77 -> 0 | P77: 2.45351 | Q77: =M77*P77 -> 15.09644703 | S77: =M77*R77 -> 0 | T77: 21 | U77: =O77*(T77/100) -> 0 | V77: =O77+U77 -> 0 | X77: SO_01 | Y77: 003
I78: Odměřeno v CADu | K78: 0 | T78: _
I79: 0,9*4,1 | K79: 3.69 | T79: _
I80: 0,6*4,105 | K80: 2.463 | T80: _
F81: 32 | G81: SP | H81: 334361412 | I81: Výztuž opěr, prahů, křídel, pilířů, sloupů ze svařovaných sítí do 6 kg/m2 | J81: t | K81: 0.73836 | L81: 0 | M81: =K81*(1+L81/100) -> 0.73836 | O81: =M81*N81 -> 0 | P81: 1.05973 | Q81: =M81*P81 -> 0.7824622428 | S81: =M81*R81 -> 0 | T81: 21 | U81: =O81*(T81/100) -> 0 | V81: =O81+U81 -> 0 | X81: SO_01 | Y81: 003
I82: 120kg/m3 | K82: 0 | T82: _
I83: 6,153*0,12 | K83: 0.73836 | T83: _
F84: 33 | G84: SP | H84: 334351112 | I84: Bednění systémové mostních opěr a úložných prahů z překližek pro ŽB - zřízení | J84: m2 | K84: 27.8995 | L84: 0 | M84: =K84*(1+L84/100) -> 27.8995 | O84: =M84*N84 -> 0 | P84: 0.00182 | Q84: =M84*P84 -> 0.05077709 | S84: =M84*R84 -> 0 | T84: 21 | U84: =O84*(T84/100) -> 0 | V84: =O84+U84 -> 0 | X84: SO_01 | Y84: 003
I85: 0,9*2 | K85: 1.8 | T85: _
I86: 0,9*4,1*2 | K86: 7.38 | T86: _
I87: 0,6*2 | K87: 1.2 | T87: _
I88: 0,6*4,105*2 | K88: 4.926 | T88: _
I89: Dilatace | K89: 0 | T89: _
I90: 0,885*4,1*2 | K90: 7.257 | T90: _
I91: 0,65*4,105*2 | K91: 5.3365 | T91: _
F92: 34 | G92: SP | H92: 334351211 | I92: Bednění systémové mostních opěr a úložných prahů z překližek - odstranění | J92: m2 | K92: 27.899 | L92: 0 | M92: =K92*(1+L92/100) -> 27.899 | O92: =M92*N92 -> 0 | P92: 4e-05 | Q92: =M92*P92 -> 0.00111596 | S92: =M92*R92 -> 0 | T92: 21 | U92: =O92*(T92/100) -> 0 | V92: =O92+U92 -> 0 | X92: SO_01 | Y92: 003
F93: 35 | G93: SP | H93: 348321119 | I93: Zábradelní římsy a nosníky a svodidlové římsy ze ŽB C 35/45 | J93: m3 | K93: 5.785425 | L93: 0 | M93: =K93*(1+L93/100) -> 5.785425 | O93: =M93*N93 -> 0 | P93: 2.45329 | Q93: =M93*P93 -> 14.1933253 | S93: =M93*R93 -> 0 | T93: 21 | U93: =O93*(T93/100) -> 0 | V93: =O93+U93 -> 0 | X93: SO_01 | Y93: 003
I94: Odměřeno v CADu | K94: 0 | T94: _
I95: (3,6+3,9+3,1)*0,2 | K95: 2.12 | T95: _
I96: (4,445+4,945+3,78)*0,25*0,26 | K96: 0.85605 | T96: _
I97: (2,6+3,9+3,8)*0,2 | K97: 2.06 | T97: _
I98: (0,895+0,66+1,835+4,920+2,61+0,3+2,405)*0,25*0,22 | K98: 0.749375 | T98: _
F99: 36 | G99: SP | H99: 348361416 | I99: Výztuž zábradlí římsového a svodidla římsy z betonářské oceli 10 505 | J99: t | K99: 0.86775 | L99: 0 | M99: =K99*(1+L99/100) -> 0.86775 | O99: =M99*N99 -> 0 | P99: 1.04823 | Q99: =M99*P99 -> 0.9096015825 | S99: =M99*R99 -> 0 | T99: 21 | U99: =O99*(T99/100) -> 0 | V99: =O99+U99 -> 0 | X99: SO_01 | Y99: 003
I100: vč vlepených kotevních trnů | K100: 0 | T100: _
I101: 150kg/m3 | K101: 0 | T101: _
I102: 5,785*0,15 | K102: 0.86775 | T102: _
F103: 37 | G103: SP | H103: 348351111 | I103: Bednění římsového zábradlí a svodidla - zřízení | J103: m2 | K103: 31.8016 | L103: 0 | M103: =K103*(1+L103/100) -> 31.8016 | O103: =M103*N103 -> 0 | P103: 0.00417 | Q103: =M103*P103 -> 0.132612672 | S103: =M103*R103 -> 0 | T103: 21 | U103: =O103*(T103/100) -> 0 | V103: =O103+U103 -> 0 | X103: SO_01 | Y103: 003
I104: Boční strany římsy | K104: 0 | T104: _
I105: (4,445+4,945+3,78)*0,46*2 | K105: 12.1164 | T105: _
I106: (0,895+0,66+1,835+4,920+2,61+0,3+2,405)*0,44 | K106: 5.995 | T106: _
I107: (0,395+1,585+4,92+2,115+2,315)*0,44 | K107: 4.9852 | T107: _
I108: Dilatace a čela | K108: 0 | T108: _
I109: 0,21*6 | K109: 1.26 | T109: _
I110: 0,22*6 | K110: 1.32 | T110: _
I111: Spodní strana | K111: 0 | T111: _
I112: (4,445+4,945+3,78)*0,25 | K112: 3.2925 | T112: _
I113: (0,395+1,585+4,92+2,115+2,315)*0,25 | K113: 2.8325 | T113: _
F114: 38 | G114: SP | H114: 348351311 | I114: Bednění římsového zábradlí a svodidla - odstranění | J114: m2 | K114: 31.802 | L114: 0 | M114: =K114*(1+L114/100) -> 31.802 | O114: =M114*N114 -> 0 | P114: 4e-05 | Q114: =M114*P114 -> 0.00127208 | S114: =M114*R114 -> 0 | T114: 21 | U114: =O114*(T114/100) -> 0 | V114: =O114+U114 -> 0 | X114: SO_01 | Y114: 003
F115: 39 | G115: SP | H115: 317353193 | I115: Příplatek k bednění mostní římsy za bednění oblé plochy poloměru R do 1,5 m | J115: m2 | K115: 0.59085 | L115: 0 | M115: =K115*(1+L115/100) -> 0.59085 | O115: =M115*N115 -> 0 | P115: 0.0009 | Q115: =M115*P115 -> 0.000531765 | S115: =M115*R115 -> 0 | T115: 21 | U115: =O115*(T115/100) -> 0 | V115: =O115+U115 -> 0 | X115: SO_01 | Y115: 003
I116: 0,3*0,2 | K116: 0.06 | T116: _
I117: 0,66*0,2 | K117: 0.132 | T117: _
I118: 0,66*0,845/2 | K118: 0.27885 | T118: _
I119: 0,3*0,8/2 | K119: 0.12 | T119: _
F120: 40 | G120: SP | H120: 31700000R | I120: Příplatek k bednění mostní římsy za sklon bednění 5:1 | J120: m2 | K120: 5.359 | L120: 0 | M120: =K120*(1+L120/100) -> 5.359 | O120: =M120*N120 -> 0 | P120: 0.0009 | Q120: =M120*P120 -> 0.0048231 | S120: =M120*R120 -> 0 | T120: 21 | U120: =O120*(T120/100) -> 0 | V120: =O120+U120 -> 0 | X120: SO_01 | Y120: 003
I121: Vnitřní strany římsy | K121: 0 | T121: _
I122: (4,445+4,945+3,78)*0,2 | K122: 2.634 | T122: _
I123: (0,895+0,66+1,835+4,920+2,61+0,3+2,405)*0,2 | K123: 2.725 | T123: _
F124: 41 | G124: SP | H124: 31700001R | I124: Příplatek za zkosení hran římsy | J124: m | K124: 73.5 | L124: 0 | M124: =K124*(1+L124/100) -> 73.5 | O124: =M124*N124 -> 0 | P124: 0.0009 | Q124: =M124*P124 -> 0.06615 | S124: =M124*R124 -> 0 | T124: 21 | U124: =O124*(T124/100) -> 0 | V124: =O124+U124 -> 0 | X124: SO_01 | Y124: 003
I125: 3 zkosené hrany | K125: 0 | T125: _
I126: (4,445+4,945+3,78)*3 | K126: 39.51 | T126: _
I127: (0,395+1,585+4,92+2,115+2,315)*3 | K127: 33.99 | T127: _
F128: 42 | G128: SP | H128: 35700001R | I128: Úložný práh 300x400x150mm ze ŽB C 30/37 ve vysekaných kapsách opěr - vč výztuže a bednění | J128: kus | K128: 2 | L128: 0 | M128: =K128*(1+L128/100) -> 2 | O128: =M128*N128 -> 0 | P128: 0.08 | Q128: =M128*P128 -> 0.16 | S128: =M128*R128 -> 0 | T128: 21 | U128: =O128*(T128/100) -> 0 | V128: =O128+U128 -> 0 | X128: SO_01 | Y128: 003
I129: Pod ochrannou konstrukci el. vedení | K129: 0 | T129: _
I130: 2 | K130: 2 | T130: _
T131: _
I132: 004: Vodorovné konstrukce | O132: =SUBTOTAL(9,O133:O151) -> 0 | Q132: =SUBTOTAL(9,Q133:Q151) -> 17.70378672 | S132: =SUBTOTAL(9,S133:S151) -> 0 | T132: _ | U132: =SUBTOTAL(9,U133:U151) -> 0 | V132: =SUBTOTAL(9,V133:V151) -> 0
F133: 43 | G133: SP | H133: 421321129 | I133: Mostní nosné konstrukce deskové ze ŽB C 35/45 | J133: m3 | K133: 6.612 | L133: 0 | M133: =K133*(1+L133/100) -> 6.612 | O133: =M133*N133 -> 0 | P133: 2.47791 | Q133: =M133*P133 -> 16.38394092 | S133: =M133*R133 -> 0 | T133: 21 | U133: =O133*(T133/100) -> 0 | V133: =O133+U133 -> 0 | X133: SO_01 | Y133: 004
I134: 1,2*5,51 | K134: 6.612 | T134: _
F135: 44 | G135: SP | H135: 421361226 | I135: Výztuž ŽB deskového mostu z betonářské oceli 10 505 | J135: t | K135: 0.9918 | L135: 0 | M135: =K135*(1+L135/100) -> 0.9918 | O135: =M135*N135 -> 0 | P135: 1.04909 | Q135: =M135*P135 -> 1.040487462 | S135: =M135*R135 -> 0 | T135: 21 | U135: =O135*(T135/100) -> 0 | V135: =O135+U135 -> 0 | X135: SO_01 | Y135: 004
I136: 150 kg/m3 | K136: 0 | T136: _
I137: 6,612*0,15 | K137: 0.9918 | T137: _
F138: 45 | G138: SP | H138: 421351111 | I138: Bednění přesahu spřažené mostovky š do 600 mm - zřízení | J138: m2 | K138: 15.67215 | L138: 0 | M138: =K138*(1+L138/100) -> 15.67215 | O138: =M138*N138 -> 0 | P138: 0.0076 | Q138: =M138*P138 -> 0.11910834 | S138: =M138*R138 -> 0 | T138: 21 | U138: =O138*(T138/100) -> 0 | V138: =O138+U138 -> 0 | X138: SO_01 | Y138: 004
I139: Spodní část - rovná | K139: 0 | T139: _
I140: 2,905*3,51 | K140: 10.19655 | T140: _
I141: Spodní část - zkosená | K141: 0 | T141: _
I142: (0,61+0,63)*3,51 | K142: 4.3524 | T142: _
I143: Boky | K143: 0 | T143: _
I144: 0,16*3,51*2 | K144: 1.1232 | T144: _
F145: 46 | G145: SP | H145: 421351211 | I145: Bednění přesahu spřažené mostovky š do 600 mm - odstranění | J145: m2 | K145: 64.933 | L145: 0 | M145: =K145*(1+L145/100) -> 64.933 | O145: =M145*N145 -> 0 | Q145: =M145*P145 -> 0 | S145: =M145*R145 -> 0 | T145: 21 | U145: =O145*(T145/100) -> 0 | V145: =O145+U145 -> 0 | X145: SO_01 | Y145: 004
F146: 47 | G146: SP | H146: 451477121 | I146: Podkladní vrstva plastbetonová drenážní první vrstva tl 20 mm | J146: m2 | K146: 3 | L146: 0 | M146: =K146*(1+L146/100) -> 3 | O146: =M146*N146 -> 0 | P146: 0.05305 | Q146: =M146*P146 -> 0.15915 | S146: =M146*R146 -> 0 | T146: 21 | U146: =O146*(T146/100) -> 0 | V146: =O146+U146 -> 0 | X146: SO_01 | Y146: 004
I147: Odvodňovač | K147: 0 | T147: _
I148: 0,3*5,0*2 | K148: 3 | T148: _
F149: 48 | G149: SP | H149: 91912111R | I149: Těsnění spár zálivkou s předtěsněním | J149: m | K149: 10 | L149: 0 | M149: =K149*(1+L149/100) -> 10 | O149: =M149*N149 -> 0 | P149: 0.00011 | Q149: =M149*P149 -> 0.0011 | S149: =M149*R149 -> 0 | T149: 21 | U149: =O149*(T149/100) -> 0 | V149: =O149+U149 -> 0 | X149: SO_01 | Y149: 004
I150: 5,0*2 | K150: 10 | T150: _
T151: _
I152: 005: Komunikace | O152: =SUBTOTAL(9,O153:O166) -> 0 | Q152: =SUBTOTAL(9,Q153:Q166) -> 31.445534 | S152: =SUBTOTAL(9,S153:S166) -> 0 | T152: _ | U152: =SUBTOTAL(9,U153:U166) -> 0 | V152: =SUBTOTAL(9,V153:V166) -> 0
F153: 49 | G153: SP | H153: 577134131 | I153: Asfaltový beton vrstva obrusná ACO 11 (ABS) tř. I tl 40 mm š do 3 m z modifikovaného asfaltu | J153: m2 | K153: 49.1 | L153: 0 | M153: =K153*(1+L153/100) -> 49.1 | O153: =M153*N153 -> 0 | P153: 0.10373 | Q153: =M153*P153 -> 5.093143 | S153: =M153*R153 -> 0 | T153: 21 | U153: =O153*(T153/100) -> 0 | V153: =O153+U153 -> 0 | X153: SO_01 | Y153: 005
I154: V1; 15,9 | K154: 15.9 | T154: _
I155: V2; 14,5+18,7 | K155: 33.2 | T155: _
F156: 50 | G156: SP | H156: 573231107 | I156: Postřik živičný spojovací ze silniční emulze v množství 0,40 kg/m2 | J156: m2 | K156: 49.1 | L156: 0 | M156: =K156*(1+L156/100) -> 49.1 | O156: =M156*N156 -> 0 | P156: 0.00041 | Q156: =M156*P156 -> 0.020131 | S156: =M156*R156 -> 0 | T156: 21 | U156: =O156*(T156/100) -> 0 | V156: =O156+U156 -> 0 | X156: SO_01 | Y156: 005
F157: 51 | G157: SP | H157: 57814323R | I157: Litý asfalt MA 11 IV tl 45 mm š přes 3 m z modifikovaného asfaltu | J157: m2 | K157: 15.9 | L157: 0 | M157: =K157*(1+L157/100) -> 15.9 | O157: =M157*N157 -> 0 | P157: 0.09792 | Q157: =M157*P157 -> 1.556928 | S157: =M157*R157 -> 0 | T157: 21 | U157: =O157*(T157/100) -> 0 | V157: =O157+U157 -> 0 | X157: SO_01 | Y157: 005
I158: V1; 15,9 | K158: 15.9 | T158: _
F159: 52 | G159: SP | H159: 565155121 | I159: Asfaltový beton vrstva podkladní ACP 16 (obalované kamenivo OKS) tl 70 mm š přes 3 m | J159: m2 | K159: 33.2 | L159: 0 | M159: =K159*(1+L159/100) -> 33.2 | O159: =M159*N159 -> 0 | P159: 0.18463 | Q159: =M159*P159 -> 6.129716 | S159: =M159*R159 -> 0 | T159: 21 | U159: =O159*(T159/100) -> 0 | V159: =O159+U159 -> 0 | X159: SO_01 | Y159: 005
I160: V2; 33,2 | K160: 33.2 | T160: _
F161: 53 | G161: SP | H161: 564851111 | I161: Podklad ze štěrkodrtě ŠD tl 150 mm | J161: m2 | K161: 66.4 | L161: 0 | M161: =K161*(1+L161/100) -> 66.4 | O161: =M161*N161 -> 0 | P161: 0.27994 | Q161: =M161*P161 -> 18.588016 | S161: =M161*R161 -> 0 | T161: 21 | U161: =O161*(T161/100) -> 0 | V161: =O161+U161 -> 0 | X161: SO_01 | Y161: 005
I162: ŠDA, 2 vrstvy | K162: 0 | T162: _
I163: V2; 33,2*2 | K163: 66.4 | T163: _
F164: 54 | G164: SP | H164: 599141111 | I164: Vyplnění spár mezi silničními dílci živičnou zálivkou | J164: m | K164: 16 | L164: 0 | M164: =K164*(1+L164/100) -> 16 | O164: =M164*N164 -> 0 | P164: 0.0036 | Q164: =M164*P164 -> 0.0576 | S164: =M164*R164 -> 0 | T164: 21 | U164: =O164*(T164/100) -> 0 | V164: =O164+U164 -> 0 | X164: SO_01 | Y164: 005
I165: Napojení na stávající komunikace; 16,0 | K165: 16 | T165: _
T166: _
I167: 006: Úpravy povrchu | O167: =SUBTOTAL(9,O168:O187) -> 0 | Q167: =SUBTOTAL(9,Q168:Q187) -> 1.972602448 | S167: =SUBTOTAL(9,S168:S187) -> 0 | T167: _ | U167: =SUBTOTAL(9,U168:U187) -> 0 | V167: =SUBTOTAL(9,V168:V187) -> 0
F168: 55 | G168: SP | H168: 628611131 | I168: Nátěr betonu mostu akrylátový 2x ochranný pružný OS-C | J168: m2 | K168: 64.3324 | L168: 0 | M168: =K168*(1+L168/100) -> 64.3324 | O168: =M168*N168 -> 0 | P168: 0.00052 | Q168: =M168*P168 -> 0.033452848 | S168: =M168*R168 -> 0 | T168: 21 | U168: =O168*(T168/100) -> 0 | V168: =O168+U168 -> 0 | X168: SO_01 | Y168: 006
I169: nátěr S4 dle TKP 31 | K169: 0 | T169: _
I170: Boční strany římsy | K170: 0 | T170: _
I171: (4,445+4,945+3,78)*(0,46+0,2) | K171: 8.6922 | T171: _
I172: (0,895+0,66+1,835+4,920+2,61+0,3+2,405)*2 | K172: 27.25 | T172: _
I173: (0,395+1,585+4,92+2,115+2,315)*0,44 | K173: 4.9852 | T173: _
I174: Dilatace a čela | K174: 0 | T174: _
I175: 0,21*6 | K175: 1.26 | T175: _
I176: 0,22*6 | K176: 1.32 | T176: _
I177: Spodní strana | K177: 0 | T177: _
I178: (4,445+4,945+3,78)*(0,25+0,6) | K178: 11.1945 | T178: _
I179: (0,395+1,585+4,92+2,115+2,315)*(0,25+0,6) | K179: 9.6305 | T179: _
F180: 56 | G180: SP | H180: 629995101 | I180: Očištění vnějších ploch tlakovou vodou | J180: m2 | K180: 49.62 | L180: 0 | M180: =K180*(1+L180/100) -> 49.62 | O180: =M180*N180 -> 0 | Q180: =M180*P180 -> 0 | S180: =M180*R180 -> 0 | T180: 21 | U180: =O180*(T180/100) -> 0 | V180: =O180+U180 -> 0 | X180: SO_01 | Y180: 006
I181: (4,2+4,0)*4,1 | K181: 33.62 | T181: _
I182: 4,0*4 | K182: 16 | T182: _
F183: 57 | G183: SP | H183: 985232111 | I183: Hloubkové spárování zdiva aktivovanou maltou spára hl do 80 mm dl do 6 m/m2 | J183: m2 | K183: 49.62 | L183: 0 | M183: =K183*(1+L183/100) -> 49.62 | O183: =M183*N183 -> 0 | P183: 0.03908 | Q183: =M183*P183 -> 1.9391496 | S183: =M183*R183 -> 0 | T183: 21 | U183: =O183*(T183/100) -> 0 | V183: =O183+U183 -> 0 | X183: SO_01 | Y183: 006
I184: (4,2+4,0)*4,1 | K184: 33.62 | T184: _
I185: 4,0*4 | K185: 16 | T185: _
F186: 58 | G186: SP | H186: 985232191 | I186: Příplatek k hloubkovému spárování za práci ve stísněném prostoru | J186: m2 | K186: 49.62 | L186: 0 | M186: =K186*(1+L186/100) -> 49.62 | O186: =M186*N186 -> 0 | Q186: =M186*P186 -> 0 | S186: =M186*R186 -> 0 | T186: 21 | U186: =O186*(T186/100) -> 0 | V186: =O186+U186 -> 0 | X186: SO_01 | Y186: 006
T187: _
I188: 009: Ostatní konstrukce a práce | O188: =SUBTOTAL(9,O189:O229) -> 0 | Q188: =SUBTOTAL(9,Q189:Q229) -> 4.171711725 | S188: =SUBTOTAL(9,S189:S229) -> 67.0619 | T188: _ | U188: =SUBTOTAL(9,U189:U229) -> 0 | V188: =SUBTOTAL(9,V189:V229) -> 0
F189: 59 | G189: SP | H189: 97721111R | I189: Řezání stěnovou pilou ŽB kcí s výztuží průměru do 16 mm hl nad 680 mm | J189: m | K189: 1.6 | L189: 0 | M189: =K189*(1+L189/100) -> 1.6 | O189: =M189*N189 -> 0 | P189: 0.00071 | Q189: =M189*P189 -> 0.001136 | S189: =M189*R189 -> 0 | T189: 21 | U189: =O189*(T189/100) -> 0 | V189: =O189+U189 -> 0 | X189: SO_01 | Y189: 009
I190: Odříznutí uchycení stávajícího elektrického vedení | K190: 0 | T190: _
I191: 0,3*2+1,0 | K191: 1.6 | T191: _
F192: 60 | G192: SP | H192: 977211191 | I192: Příplatek k řezání stěnovou pilou za práci ve stísněném prostoru | J192: m | K192: 1.6 | L192: 0 | M192: =K192*(1+L192/100) -> 1.6 | O192: =M192*N192 -> 0 | Q192: =M192*P192 -> 0 | S192: =M192*R192 -> 0 | T192: 21 | U192: =O192*(T192/100) -> 0 | V192: =O192+U192 -> 0 | X192: SO_01 | Y192: 009
F193: 61 | G193: SP | H193: 97502415R | I193: Podepření a zajištění vyříznuté části mostu vč následného odstranění | J193: kus | K193: 1 | L193: 0 | M193: =K193*(1+L193/100) -> 1 | O193: =M193*N193 -> 0 | P193: 0.06318 | Q193: =M193*P193 -> 0.06318 | S193: =M193*R193 -> 0 | T193: 21 | U193: =O193*(T193/100) -> 0 | V193: =O193+U193 -> 0 | X193: SO_01 | Y193: 009
F194: 62 | G194: SP | H194: 919735112 | I194: Řezání stávajícího živičného krytu hl do 100 mm | J194: m | K194: 16 | L194: 0 | M194: =K194*(1+L194/100) -> 16 | O194: =M194*N194 -> 0 | Q194: =M194*P194 -> 0 | S194: =M194*R194 -> 0 | T194: 21 | U194: =O194*(T194/100) -> 0 | V194: =O194+U194 -> 0 | X194: SO_01 | Y194: 009
I195: 8,0+0,5+5,7+1,8 | K195: 16 | T195: _
F196: 63 | G196: SP | H196: 963051111 | I196: Bourání mostní nosné konstrukce z ŽB | J196: m3 | K196: 27.3575 | L196: 0 | M196: =K196*(1+L196/100) -> 27.3575 | O196: =M196*N196 -> 0 | P196: 0.12171 | Q196: =M196*P196 -> 3.329681325 | R196: 2.4 | S196: =M196*R196 -> 65.658 | T196: 21 | U196: =O196*(T196/100) -> 0 | V196: =O196+U196 -> 0 | X196: SO_01 | Y196: 009
I197: Celá skladba stávajícího mostu vč vozovkového souvrství | K197: 0 | T197: _
I198: 7,1*0,7*4,6 | K198: 22.862 | T198: _
I199: 7,4*4,05*0,15 | K199: 4.4955 | T199: _
F200: 64 | G200: SP | H200: 966075141 | I200: Odstranění kovového zábradlí vcelku | J200: m | K200: 25.55 | L200: 0 | M200: =K200*(1+L200/100) -> 25.55 | O200: =M200*N200 -> 0 | P200: 8e-05 | Q200: =M200*P200 -> 0.002044 | R200: 0.018 | S200: =M200*R200 -> 0.4599 | T200: 21 | U200: =O200*(T200/100) -> 0 | V200: =O200+U200 -> 0 | X200: SO_01 | Y200: 009
I201: 13,19+2,34+2,28+4,24+2,83+0,67 | K201: 25.55 | T201: _
F202: 65 | G202: SP | H202: 96305111R | I202: Opatrné bourání vyříznuté mostní konstrukce z ŽB po vyhotovení nosné konstrukce el. vedení - vč odříznutí stávajících ocelových podpěr | J202: m3 | K202: 0.24 | L202: 0 | M202: =K202*(1+L202/100) -> 0.24 | O202: =M202*N202 -> 0 | P202: 0.12171 | Q202: =M202*P202 -> 0.0292104 | R202: 2.4 | S202: =M202*R202 -> 0.576 | T202: 21 | U202: =O202*(T202/100) -> 0 | V202: =O202+U202 -> 0 | X202: SO_01 | Y202: 009
I203: Celá skladba stávajícího mostu vč vozovkového souvrství | K203: 0 | T203: _
... 222 more rows

Sheet Figury (hidden)
A1: Figura | B1: Výraz | C1: Hodnota | D1: Popis
